[Event "4NCL Div 1 2024-25"]
[Site "England"]
[Date "2024.11.24"]
[Round "2.31"]
[White "Grassie, Duncan"]
[Black "Stoyanov, Viktor"]
[Result "0-1"]
[Annotator "RC"]
[ECO "A45"]
[WhiteElo "2060"]
[BlackElo "2242"]
[PlyCount "98"]
[EventDate "2024.11.23"]
[EventType "team-tourn"]
[EventCountry "ENG"]
[SourceTitle "playchess.com"]
[Source "ChessBase"]
[SourceQuality "1"]
[TimeControl "40/6000+30:3000+30"]

1. d4 {[%emt 0:10:06]} Nf6 {[%emt 0:12:18]} 2. Bg5 {[%emt 0:00:11]} e6 {[%emt 0:01:50]} 3. e4 {[%emt 0:00:18]} h6 {[%emt 0:00:11]} 4. Bxf6 {[%emt 0:00:15]} Qxf6 {[%emt 0:00:03]} 5. c3 {[%emt 0:00:41]} c5 {[%emt 0:00:25]} 6. e5 {[%emt 0:00:36]} Qd8 {[%emt 0:01:49]} 7. d5 {[%emt 0:01:31]} exd5 {[%emt 0:09:48]} 8. Qxd5 {[%emt 0:00:16]} Nc6 {[%emt 0:00:23]} 9. f4 {[%emt 0:04:43]} d6 {[%emt 0:02:35]} 10. Bb5 {[%emt 0:08:55]} Qb6 {[%emt 0:08:55]} 11. Na3 {[%emt 0:10:32]} Be6 {[%emt 0:01:45]} 12. Qe4 {[%emt 0:04:03]} d5 {[%emt 0:06:17]} 13. Qe2 {[%emt 0:02:07]} g5 {[%emt 0:08:43]} 14. g3 {[%emt 0:12:15]} O-O-O {[%emt 0:03:45]} 15. Nf3 {[%emt 0:04:10]} Be7 {[%emt 0:01:29]} 16. O-O-O {[%emt 0:06:21]} a6 {[%emt 0:05:07]} 17. Bd3 {[%emt 0:04:49]} g4 {[%emt 0:04:11]} 18. Ne1 {[%emt 0:02:49]} c4 {[%emt 0:00:23]} 19. Bb1 {[%emt 0:00:27]} Bxa3 {[%emt 0:01:31]} 20. bxa3 {[%emt 0:05:09]} d4 {[%emt 0:00:08]} 21. Qf2 {[%emt 0:09:23]} Qa5 {[%emt 0:01:22]} 22. cxd4 {[%emt 0:00:40]} Qxa3+ {[%emt 0:00:50]} 23. Qb2 {[%emt 0:00:24]} Qa5 {[%emt 0:02:15]} 24. Nc2 {[%emt 0:02:44]} c3 {[%emt 0:00:22]} 25. Qa3 {[%emt 0:00:36]} Qxa3+ {[%emt 0:00:24]} 26. Nxa3 {[%emt 0:00:05]} Nxd4 {[%emt 0:00:07]} 27. Rd3 {[%emt 0:01:33]} Ne2+ {[%emt 0:00:58]} 28. Kd1 {[%emt 0:01:14]} Rxd3+ {[%emt 0:00:12]} 29. Bxd3 {[%emt 0:00:07]} Nd4 {[%emt 0:00:02]} 30. Nc4 {[%emt 0:01:28]} b5 {[%emt 0:00:43]} 31. Nd6+ {[%emt 0:01:26]} Kc7 {[%emt 0:00:05]} 32. a3 {[%emt 0:01:49]} Rb8 {[%emt 0:01:02]} 33. Re1 {[%emt 0:04:54]} Bd5 {[%emt 0:01:43]} 34. Be4 {[%emt 0:04:13]} Bb3+ {[%emt 0:00:08]} 35. Kc1 {[%emt 0:00:08]} a5 {[%emt 0:00:12]} 36. Re3 {[%emt 0:03:43]} b4 {[%emt 0:00:04]} 37. Nf5 {[%emt 0:01:20]} Nxf5 {[%emt 0:01:30]} 38. Bxf5 {[%emt 0:00:04]} h5 {[%emt 0:00:20]} 39. Bc2 {[%emt 0:03:07]} Bxc2 {[%emt 0:00:35]} 40. Kxc2 {[%emt 0:00:04]} b3+ {[%emt 0:00:22]} 41. Kb1 {[%emt 0:23:37]} c2+ {[%emt 0:20:05]} 42. Kb2 {[%emt 0:00:13]} a4 {[%emt 0:00:05]} 43. Re4 {[%emt 0:02:23]} Ra8 {[%emt 0:00:08]} 44. f5 {[%emt 0:08:39]} Kd7 {[%emt 0:00:13]} 45. Rd4+ {[%emt 0:00:11]} Ke7 {[%emt 0:00:08]} 46. Rc4 {[%emt 0:00:38]} Ra5 {[%emt 0:00:11]} 47. Rc7+ {[%emt 0:01:55]} Kd8 {[%emt 0:00:31]} 48. Rc4 {[%emt 0:03:51]} Rxe5 {[%emt 0:00:11]} 49. Rxa4 {[%emt 0:00:07]} Re1 {[%emt 0:00:41]} 0-1

[Event "4NCL Div 1 2024-25"]
[Site "England"]
[Date "2024.11.24"]
[Round "2.32"]
[White "Kalaiyalahan, Akshaya"]
[Black "Lampard, Alice"]
[Result "1-0"]
[Annotator "RC"]
[ECO "E11"]
[WhiteElo "2130"]
[BlackElo "1891"]
[PlyCount "111"]
[EventDate "2024.11.23"]
[EventType "team-tourn"]
[EventCountry "ENG"]
[SourceTitle "playchess.com"]
[Source "ChessBase"]
[SourceQuality "1"]
[TimeControl "40/6000+30:3000+30"]

1. d4 {[%emt 0:10:05]} d5 {[%emt 0:10:10]} 2. c4 {[%emt 0:00:06]} e6 {[%emt 0:00:15]} 3. g3 {[%emt 0:00:33]} Nf6 {[%emt 0:00:45]} 4. Bg2 {[%emt 0:00:51]} Bb4+ {[%emt 0:03:59]} 5. Bd2 {[%emt 0:00:05]} Be7 {[%emt 0:00:24]} 6. Nf3 {[%emt 0:01:49]} O-O {[%emt 0:00:38]} 7. O-O {[%emt 0:00:58]} b6 {[%emt 0:04:21]} 8. Ne5 {[%emt 0:05:04]} Bb7 {[%emt 0:03:16]} 9. Qc2 {[%emt 0:01:41]} Ne4 {[%emt 0:08:44]} 10. Bf4 {[%emt 0:00:54]} c6 {[%emt 0:03:31]} 11. Bxe4 {[%emt 0:03:50]} dxe4 {[%emt 0:00:07]} 12. Qxe4 {[%emt 0:00:18]} Bf6 {[%emt 0:05:01]} 13. Rc1 {[%emt 0:05:34]} Qe7 {[%emt 0:07:03]} 14. c5 {[%emt 0:02:49]} Rd8 {[%emt 0:03:41]} 15. Na3 {[%emt 0:09:35]} b5 {[%emt 0:08:07]} 16. Nf3 {[%emt 0:05:13]} Na6 {[%emt 0:06:17]} 17. Bd6 {[%emt 0:02:18]} Qd7 {[%emt 0:00:16]} 18. Ne5 {[%emt 0:04:56]} Bxe5 {[%emt 0:04:12]} 19. Qxe5 {[%emt 0:00:23]} Nb4 {[%emt 0:01:28]} 20. Nc2 {[%emt 0:05:04]} Nd5 {[%emt 0:02:16]} 21. e4 {[%emt 0:05:53]} Nb6 {[%emt 0:04:24]} 22. cxb6 {[%emt 0:06:53]} Qxd6 {[%emt 0:00:07]} 23. Qxd6 {[%emt 0:00:15]} Rxd6 {[%emt 0:00:06]} 24. bxa7 {[%emt 0:00:18]} Rxa7 {[%emt 0:00:36]} 25. Rd1 {[%emt 0:02:55]} h6 {[%emt 0:03:13]} 26. a3 {[%emt 0:02:31]} Ba8 {[%emt 0:01:47]} 27. Kf1 {[%emt 0:01:18]} Rad7 {[%emt 0:03:10]} 28. Ke2 {[%emt 0:00:44]} Kf8 {[%emt 0:01:42]} 29. f3 {[%emt 0:03:54]} Rd8 {[%emt 0:03:30]} 30. Rac1 {[%emt 0:00:39]} f6 {[%emt 0:04:12]} 31. Nb4 {[%emt 0:03:57]} g5 {[%emt 0:05:08]} 32. Rd3 {[%emt 0:09:21]} g4 {[%emt 0:04:30]} 33. Rcd1 {[%emt 0:05:15]} gxf3+ {[%emt 0:00:58]} 34. Kxf3 {[%emt 0:02:17]} Ke7 {[%emt 0:03:03]} 35. Ke3 {[%emt 0:00:25]} Bb7 {[%emt 0:00:30]} 36. Rc1 {[%emt 0:01:47]} e5 {[%emt 0:02:25]} 37. dxe5 {[%emt 0:01:53]} fxe5 {[%emt 0:00:06]} 38. Rxd6 {[%emt 0:00:50]} Rxd6 {[%emt 0:00:16]} 39. Nd3 {[%emt 0:00:19]} h5 {[%emt 0:02:51]} 40. Nxe5 {[%emt 0:02:39]} Re6 {[%emt 0:02:12]} 41. Nd3 {[%emt 0:50:38]} Rh6 {[%emt 0:23:16]} 42. Rc5 {[%emt 0:00:00]} Bc8 {[%emt 0:01:34]} 43. Ne5 {[%emt 0:00:00]} Bb7 {[%emt 0:00:27]} 44. Nf3 {[%emt 0:00:00]} Bc8 {[%emt 0:00:53]} 45. Nd4 {[%emt 0:00:00]} Bd7 {[%emt 0:01:58]} 46. Nf5+ {[%emt 0:00:00]} Bxf5 {[%emt 0:00:10]} 47. exf5 {[%emt 0:00:00]} Kd6 {[%emt 0:00:14]} 48. b4 {[%emt 0:00:00]} Rh8 {[%emt 0:00:22]} 49. Kf4 {[%emt 0:00:00]} Ra8 {[%emt 0:00:48]} 50. Rc3 {[%emt 0:00:00]} Rg8 {[%emt 0:01:06]} 51. h3 {[%emt 0:00:00]} Re8 {[%emt 0:00:45]} 52. Rd3+ {[%emt 0:00:00]} Kc7 {[%emt 0:00:14]} 53. g4 {[%emt 0:00:00]} hxg4 {[%emt 0:00:46]} 54. hxg4 {[%emt 0:00:00]} Re1 {[%emt 0:00:20]} 55. g5 {[%emt 0:00:00]} Rf1+ {[%emt 0:01:18]} 56. Ke4 {[%emt 0:00:00]} 1-0

[Event "4NCL Div 1 2024-25"]
[Site "England"]
[Date "2024.11.24"]
[Round "2.33"]
[White "Larkin, Vladyslav"]
[Black "Gormally, Daniel W"]
[Result "1/2-1/2"]
[Annotator "RC"]
[ECO "B52"]
[WhiteElo "2455"]
[BlackElo "2424"]
[PlyCount "53"]
[EventDate "2024.11.23"]
[EventType "team-tourn"]
[EventCountry "ENG"]
[SourceTitle "playchess.com"]
[Source "ChessBase"]
[SourceQuality "1"]
[TimeControl "40/6000+30:3000+30"]

1. e4 {[%emt 0:10:04]} c5 {[%emt 0:10:29]} 2. Nf3 {[%emt 0:00:12]} d6 {[%emt 0:01:29]} 3. Bb5+ {[%emt 0:00:15]} Bd7 {[%emt 0:00:35]} 4. Bxd7+ {[%emt 0:00:29]} Nxd7 {[%emt 0:00:29]} 5. c4 {[%emt 0:00:12]} Ngf6 {[%emt 0:01:48]} 6. Nc3 {[%emt 0:00:17]} e6 {[%emt 0:04:46]} 7. d4 {[%emt 0:01:44]} cxd4 {[%emt 0:00:07]} 8. Qxd4 {[%emt 0:00:04]} a6 {[%emt 0:00:17]} 9. O-O {[%emt 0:00:33]} Be7 {[%emt 0:00:06]} 10. Rd1 {[%emt 0:05:35]} O-O {[%emt 0:00:59]} 11. b3 {[%emt 0:02:18]} Qa5 {[%emt 0:02:23]} 12. Qd2 {[%emt 0:13:50]} Bd8 {[%emt 0:17:43]} 13. Bb2 {[%emt 0:05:03]} Bc7 {[%emt 0:01:01]} 14. Qe2 {[%emt 0:10:05]} Rfe8 {[%emt 0:05:07]} 15. h3 {[%emt 0:12:13]} Qh5 {[%emt 0:08:53]} 16. Ba3 {[%emt 0:01:49]} d5 {[%emt 0:01:06]} 17. c5 {[%emt 0:05:09]} Ne5 {[%emt 0:02:12]} 18. Rac1 {[%emt 0:05:52]} Nxf3+ {[%emt 0:09:58]} 19. Qxf3 {[%emt 0:00:04]} Qe5 {[%emt 0:00:35]} 20. exd5 {[%emt 0:06:25]} Qh2+ {[%emt 0:08:23]} 21. Kf1 {[%emt 0:00:03]} exd5 {[%emt 0:00:15]} 22. g4 {[%emt 0:00:09]} Rad8 {[%emt 0:05:44]} 23. Qg2 {[%emt 0:12:46]} Qe5 {[%emt 0:05:44]} 24. Re1 {[%emt 0:00:19]} Qd4 {[%emt 0:01:54]} 25. Red1 {[%emt 0:01:21]} Qe5 {[%emt 0:01:56]} 26. Re1 {[%emt 0:00:05]} Qd4 {[%emt 0:00:38]} 27. Red1 {[%emt 0:00:06]} 1/2-1/2

[Event "4NCL Div 1 2024-25"]
[Site "England"]
[Date "2024.11.24"]
[Round "2.34"]
[White "Bates, Richard A"]
[Black "Jogstad, Martin"]
[Result "1/2-1/2"]
[Annotator "TA"]
[ECO "D23"]
[WhiteElo "2315"]
[BlackElo "2379"]
[PlyCount "98"]
[EventDate "2024.11.23"]
[EventType "team-tourn"]
[EventCountry "ENG"]
[SourceTitle "playchess.com"]
[Source "ChessBase"]
[SourceQuality "1"]
[TimeControl "40/6000+30:3000+30"]

{[%evp 10,98,0,2,0,10,12,18,31,25,31,17,28,7,11,15,2,10,24,0,27,11,18,21,22,10,14,16,6,17,23,35,61,52,54,34,52,41,70,55,64,64,60,58,65,53,177,166,159,140,141,160,185,168,186,180,201,214,239,235,223,191,185,191,239,212,202,102,102,0,0,0,0,0,0,0,0,0,0,0,0,0,0,0,0,0,0,0,83,83,83]} 1. d4 {[%emt 0:10:17]} d5 {[%emt 0:10:08]} 2. c4 {[%emt 0:00:23]} c6 {[%emt 0:00:03]} 3. Nf3 {[%emt 0:00:36]} Nf6 {[%emt 0:00:08]} 4. Qb3 {[%emt 0:01:28]} dxc4 {[%emt 0:00:07]} 5. Qxc4 {[%emt 0:00:05]} Bg4 {[%emt 0:00:07]} 6. Nbd2 {[%emt 0:00:42]} Nbd7 {[%emt 0:00:24]} 7. g3 {[%emt 0:00:33]} e6 {[%emt 0:00:37]} 8. Bg2 {[%emt 0:00:11]} Bd6 {[%emt 0:00:57] The position is equal.} 9. Qb3 {[%emt 0:03:37]} Nb6 {[%emt 0:00:43]} 10. O-O {[%emt 0:01:01]} O-O {[%emt 0:00:08]} 11. Re1 {[%emt 0:02:54]} a5 {[%emt 0:00:05][%cal Ba7a5,Ba5a4][%mdl 32]} 12. a3 {[%emt 0:04:07]} a4 {[%emt 0:03:30]} 13. Qc2 {[%emt 0:02:20]} Rc8 {[%emt 0:00:39]} 14. e4 {[%emt 0:02:58] [#] aiming for e5.} (14. Ne5 {seems wilder.} c5 15. Bxb7 Rc7 16. Nxg4 Nxg4 17. Bg2) 14... Be7 {[%emt 0:01:28]} (14... c5 $2 15. e5 $18) 15. b4 {[%emt 0:08:03]} axb3 {[%emt 0:03:30]} 16. Nxb3 {[%emt 0:00:17]} c5 {[%emt 0:07:34]} 17. dxc5 {[%emt 0:05:52]} Na4 {[%emt 0:01:33][%cal Ra4c5]} 18. Be3 {[%emt 0:08:31]} Nd7 {[%emt 1:02:08] Wards off Ne5} 19. Red1 {[%emt 0:19:50][%cal Od1d7] With the idea Rxd7!} Bxf3 {[%emt 0:01:13]} 20. Bxf3 {[%emt 0:00:10]} Qc7 {[%emt 0:00:21][%cal Ra4c5]} 21. Bf4 {[%emt 0:08:10]} Ne5 {[%emt 0:03:23]} 22. Bg2 {[%emt 0:04:06]} g5 {[%emt 0:03:54]} 23. Be3 {[%emt 0:01:34]} Ng4 {[%emt 0:01:28]} 24. Bd4 {[%emt 0:01:58] Against Nxe3} Nxc5 {[%emt 0:03:51]} 25. Rac1 {[%emt 0:05:49]} b6 {[%emt 0:00:19][%cal Bb7b6,Bb6c5][%mdl 32]} 26. Qe2 {[%emt 0:01:16]} Ne5 {[%emt 0:01:36]} 27. Qh5 {[%emt 0:00:29]} Ng6 {[%emt 0:02:00] [#]} ({Better is} 27... Rfd8 $14) 28. Qh6 $1 $36 {[%emt 0:02:00][%csl Gd4][%cal Rh6g7][%mdl 2048] Black is under strong pressure.} e5 {[%emt 0:00:37]} 29. Nxc5 {[%emt 0:02:49]} bxc5 {[%emt 0:00:53]} 30. Be3 {[%emt 0:00:11] White is much more active.} Rcd8 {[%emt 0:00:59] Prevents Rd3} 31. Bxg5 {[%emt 0:01:00]} Rxd1+ {[%emt 0:01:01]} 32. Rxd1 {[%emt 0:00:06]} Rd8 {[%emt 0:00:19]} 33. Rxd8+ {[%emt 0:03:40]} Bxd8 {[%emt 0:00:07]} 34. Bxd8 {[%emt 0:01:46]} Qxd8 {[%emt 0:00:01][%mdl 4096] Endgame. KQB-KQN} 35. Qc1 {[%emt 0:00:30] Wards off Qd1+} Qd4 {[%emt 0:00:32]} 36. Bf1 {[%emt 0:00:11] Against c4} Ne7 {[%emt 0:01:23]} (36... h6 $142 37. Qc4 (37. Qxh6 c4 $18) 37... Ne7) 37. Qc2 {[%emt 0:01:37]} Nc6 {[%emt 0:00:32]} 38. Kg2 {[%emt 0:01:02]} (38. Bc4 $18) 38... Na5 $16 {[%emt 0:00:16] Prevents Qb3} 39. Bb5 {[%emt 0:01:44]} ({White should try} 39. Qb1 $16) 39... c4 $11 {[%emt 0:00:36]} 40. Qe2 {[%emt 0:02:44]} c3 {[%emt 0:00:31]} 41. Bd3 {[%emt 0:26:16]} Kf8 {[%emt 0:24:16]} 42. Qf3 {[%emt 0:02:14]} Nc4 {[%emt 0:08:25]} 43. a4 {[%emt 0:03:12]} Nd2 {[%emt 0:03:35][%csl LRa4,LRf3]} 44. Qe3 {[%emt 0:03:29]} Qxe3 {[%emt 0:03:05]} 45. fxe3 {[%emt 0:00:04]} Ke7 {[%emt 0:00:46]} 46. a5 {[%emt 0:03:50] And now a6 would win.} Kd6 {[%emt 0:03:09]} 47. a6 {[%emt 0:00:25] Threatens to win with a7.} Kc6 {[%emt 0:02:32]} 48. Kf2 {[%emt 0:00:14]} Kb6 {[%emt 0:00:39]} (48... Nc4 $1 $11) 49. Ke2 $16 {[%emt 0:00:49] g4 is the strong threat.} Nb3 {[%emt 0:05:13] Black defended with fortune.   Weighted Error Value: White=0.09 (flawless) /Black=0.12 (very precise) .  Mistake:       	White=2     	Black=3      Inaccurate:     	---       	Black=3      OK:         	White=18    	Black=19     Best:        	White=2     	Black=5} 1/2-1/2

[Event "4NCL Div 1 2024-25"]
[Site "England"]
[Date "2024.11.24"]
[Round "2.35"]
[White "Maycock Bates, David Henry"]
[Black "Ledger, Andrew J"]
[Result "1/2-1/2"]
[Annotator "RC"]
[ECO "B19"]
[WhiteElo "2290"]
[BlackElo "2328"]
[PlyCount "117"]
[EventDate "2024.11.23"]
[EventType "team-tourn"]
[EventCountry "ENG"]
[SourceTitle "playchess.com"]
[Source "ChessBase"]
[SourceQuality "1"]
[TimeControl "40/6000+30:3000+30"]

1. e4 {[%emt 0:32:00]} c6 {[%emt 0:10:45]} 2. d4 {[%emt 0:00:10]} d5 {[%emt 0:00:05]} 3. Nc3 {[%emt 0:00:06]} dxe4 {[%emt 0:00:10]} 4. Nxe4 {[%emt 0:00:20]} Bf5 {[%emt 0:00:21]} 5. Ng3 {[%emt 0:00:07]} Bg6 {[%emt 0:00:05]} 6. h4 {[%emt 0:00:08]} h6 {[%emt 0:00:07]} 7. Nf3 {[%emt 0:00:08]} e6 {[%emt 0:00:51]} 8. Ne5 {[%emt 0:00:16]} Bh7 {[%emt 0:00:04]} 9. Bd3 {[%emt 0:00:07]} Bxd3 {[%emt 0:00:08]} 10. Qxd3 {[%emt 0:00:09]} Nd7 {[%emt 0:00:08]} 11. f4 {[%emt 0:00:31]} Be7 {[%emt 0:01:01]} 12. Bd2 {[%emt 0:07:17]} Nxe5 {[%emt 0:00:14]} 13. fxe5 {[%emt 0:00:06]} Bxh4 {[%emt 0:00:05]} 14. O-O-O {[%emt 0:00:16]} Bxg3 {[%emt 0:00:13]} 15. Qxg3 {[%emt 0:00:08]} Ne7 {[%emt 0:00:05]} 16. Qxg7 {[%emt 0:09:57]} Rg8 {[%emt 0:00:15]} 17. Qxh6 {[%emt 0:00:06]} Qd5 {[%emt 0:05:10]} 18. Kb1 {[%emt 0:11:38]} O-O-O {[%emt 0:02:49]} 19. Qf6 {[%emt 0:20:18]} Rxg2 {[%emt 0:04:19]} 20. Qxe7 {[%emt 0:00:06]} Rxd2 {[%emt 0:00:07]} 21. Qxd8+ {[%emt 0:00:05]} Kxd8 {[%emt 0:00:05]} 22. Rh8+ {[%emt 0:00:04]} Ke7 {[%emt 0:00:07]} 23. Rxd2 {[%emt 0:00:04]} Qe4 {[%emt 0:04:26]} 24. Kc1 {[%emt 0:01:52]} c5 {[%emt 0:01:26]} 25. c3 {[%emt 0:00:24]} b5 {[%emt 0:17:05]} 26. Rc8 {[%emt 0:07:54]} Qe1+ {[%emt 0:03:02]} 27. Kc2 {[%emt 0:00:52]} Qe4+ {[%emt 0:00:08]} 28. Kc1 {[%emt 0:03:15]} Qe1+ {[%emt 0:00:05]} 29. Rd1 {[%emt 0:01:28]} Qe3+ {[%emt 0:00:08]} 30. Kb1 {[%emt 0:00:04]} Qe2 {[%emt 0:07:13]} 31. Kc1 {[%emt 0:00:06]} Qe3+ {[%emt 0:00:09]} 32. Kb1 {[%emt 0:00:05]} Qe2 {[%emt 0:00:09]} 33. Rc1 {[%emt 0:00:43]} Qd3+ {[%emt 0:07:00]} 34. Ka1 {[%emt 0:00:06]} Qd2 {[%emt 0:00:57]} 35. Kb1 {[%emt 0:00:53]} Qd3+ {[%emt 0:00:03]} 36. Ka1 {[%emt 0:00:05]} Qd2 {[%emt 0:00:04]} 37. Rh1 {[%emt 0:00:06]} cxd4 {[%emt 0:01:43]} 38. cxd4 {[%emt 0:00:06]} Qxd4 {[%emt 0:00:36]} 39. Rc7+ {[%emt 0:00:34]} Kf8 {[%emt 0:01:19]} 40. Rf1 {[%emt 0:01:26]} Ke8 {[%emt 0:04:40]} 41. Rcxf7 {[%emt 0:53:30]} Qd3 {[%emt 0:59:16]} 42. a3 {[%emt 0:08:13]} a5 {[%emt 0:01:58]} 43. Rf8+ {[%emt 0:00:00]} Kd7 {[%emt 0:00:00]} 44. Rc1 {[%emt 0:00:00]} Qe3 {[%emt 0:00:00]} 45. Rd1+ {[%emt 0:00:00]} Ke7 {[%emt 0:00:00]} 46. Ra8 {[%emt 0:00:00]} a4 {[%emt 0:00:00]} 47. Rh1 {[%emt 0:00:00]} Qxe5 {[%emt 0:00:00]} 48. Rh7+ {[%emt 0:00:00]} Kd6 {[%emt 0:00:00]} 49. Ra6+ {[%emt 0:01:20]} Kc5 {[%emt 0:00:00]} 50. Rh3 {[%emt 0:01:13]} Qe2 {[%emt 0:00:00]} 51. Rc3+ {[%emt 0:00:14]} Kd5 {[%emt 0:00:00]} 52. Rac6 {[%emt 0:04:14]} e5 {[%emt 0:00:00]} 53. R6c5+ {[%emt 0:01:38]} Kd4 {[%emt 0:00:00]} 54. Rc2 {[%emt 0:00:26]} Qf1+ {[%emt 0:00:00]} 55. Rc1 {[%emt 0:00:11]} Qe2 {[%emt 0:00:00]} 56. R5c2 {[%emt 0:00:15]} Qd3 {[%emt 0:00:00]} 57. Rc3 {[%emt 0:00:08]} Qe2 {[%emt 0:00:00]} 58. R3c2 {[%emt 0:00:07]} Qd3 {[%emt 0:00:00]} 59. Rc3 {[%emt 0:00:04]} 1/2-1/2

[Event "4NCL Div 1 2024-25"]
[Site "England"]
[Date "2024.11.24"]
[Round "2.36"]
[White "Ansell, Simon T"]
[Black "Large, Peter G"]
[Result "1/2-1/2"]
[Annotator "RC"]
[ECO "B00"]
[WhiteElo "2323"]
[BlackElo "2303"]
[PlyCount "88"]
[EventDate "2024.11.23"]
[EventType "team-tourn"]
[EventCountry "ENG"]
[SourceTitle "playchess.com"]
[Source "ChessBase"]
[SourceQuality "1"]
[TimeControl "40/6000+30:3000+30"]

1. e4 {[%emt 0:10:10]} Nc6 {[%emt 0:11:24]} 2. d4 {[%emt 0:00:45]} e5 {[%emt 0:00:23]} 3. dxe5 {[%emt 0:04:02]} Nxe5 {[%emt 0:00:08]} 4. Nf3 {[%emt 0:00:18]} Bb4+ {[%emt 0:02:06]} 5. c3 {[%emt 0:05:52]} Bd6 {[%emt 0:00:19]} 6. Nxe5 {[%emt 0:13:51]} Bxe5 {[%emt 0:00:23]} 7. f4 {[%emt 0:00:40]} Bd6 {[%emt 0:00:07]} 8. Bc4 {[%emt 0:04:11]} Qh4+ {[%emt 0:04:52]} 9. g3 {[%emt 0:00:09]} Qe7 {[%emt 0:00:04]} 10. Qe2 {[%emt 0:02:47]} Bc5 {[%emt 0:03:33]} 11. Nd2 {[%emt 0:12:16]} d5 {[%emt 0:07:24]} 12. exd5 {[%emt 0:04:28]} Qxe2+ {[%emt 0:00:08]} 13. Bxe2 {[%emt 0:00:37]} Nf6 {[%emt 0:00:06]} 14. b4 {[%emt 0:02:37]} Bb6 {[%emt 0:01:13]} 15. Nc4 {[%emt 0:04:04]} O-O {[%emt 0:02:02]} 16. Nxb6 {[%emt 0:01:25]} axb6 {[%emt 0:00:13]} 17. O-O {[%emt 0:09:27]} Nxd5 {[%emt 0:02:28]} 18. Bd2 {[%emt 0:01:28]} Rd8 {[%emt 0:10:35]} 19. Rfd1 {[%emt 0:03:59]} Nf6 {[%emt 0:10:07]} 20. Be1 {[%emt 0:01:19]} Bg4 {[%emt 0:02:03]} 21. Rxd8+ {[%emt 0:00:30]} Rxd8 {[%emt 0:00:07]} 22. Bf1 {[%emt 0:00:51]} Bf3 {[%emt 0:02:33]} 23. a4 {[%emt 0:07:12]} h5 {[%emt 0:03:29]} 24. c4 {[%emt 0:01:14]} Ng4 {[%emt 0:17:45]} 25. h3 {[%emt 0:05:21]} Ne3 {[%emt 0:03:56]} 26. Kf2 {[%emt 0:00:52]} Nxf1 {[%emt 0:01:41]} 27. Kxf3 {[%emt 0:00:36]} Nd2+ {[%emt 0:00:18]} 28. Bxd2 {[%emt 0:02:47]} Rxd2 {[%emt 0:00:07]} 29. a5 {[%emt 0:00:05]} Rd3+ {[%emt 0:09:49]} 30. Kf2 {[%emt 0:00:10]} h4 {[%emt 0:03:31]} 31. axb6 {[%emt 0:02:22]} cxb6 {[%emt 0:00:34]} 32. Ra8+ {[%emt 0:00:44]} Kh7 {[%emt 0:00:07]} 33. gxh4 {[%emt 0:03:23]} Rd4 {[%emt 0:04:32]} 34. Rc8 {[%emt 0:02:11]} b5 {[%emt 0:02:13]} 35. cxb5 {[%emt 0:00:16]} Rxf4+ {[%emt 0:00:12]} 36. Kg3 {[%emt 0:00:02]} Rxb4 {[%emt 0:00:09]} 37. Rc7 {[%emt 0:00:56]} Rb3+ {[%emt 0:00:47]} 38. Kg2 {[%emt 0:00:34]} Rxb5 {[%emt 0:00:57]} 39. Rxf7 {[%emt 0:00:13]} Rb2+ {[%emt 0:02:42]} 40. Kg3 {[%emt 0:00:09]} b5 {[%emt 0:01:14]} 41. Rb7 {[%emt 0:27:49]} b4 {[%emt 0:22:25]} 42. h5 {[%emt 0:09:32]} Rb1 {[%emt 0:00:49]} 43. Rb8 {[%emt 0:02:51]} b3 {[%emt 0:01:05]} 44. h4 {[%emt 0:00:47]} Rb2 {[%emt 0:04:15]} 1/2-1/2

[Event "4NCL Div 1 2024-25"]
[Site "England"]
[Date "2024.11.24"]
[Round "2.37"]
[White "Jarocka, Liwia"]
[Black "Webb, Laurence E"]
[Result "1/2-1/2"]
[Annotator "RC"]
[ECO "C18"]
[WhiteElo "2267"]
[BlackElo "2217"]
[PlyCount "112"]
[EventDate "2024.11.23"]
[EventType "team-tourn"]
[EventCountry "ENG"]
[SourceTitle "playchess.com"]
[Source "ChessBase"]
[SourceQuality "1"]
[TimeControl "40/6000+30:3000+30"]

1. e4 {[%emt 0:10:08]} e6 {[%emt 0:10:12]} 2. d4 {[%emt 0:00:08]} d5 {[%emt 0:00:06]} 3. Nc3 {[%emt 0:00:07]} Bb4 {[%emt 0:00:42]} 4. e5 {[%emt 0:00:08]} c5 {[%emt 0:00:28]} 5. a3 {[%emt 0:00:12]} Bxc3+ {[%emt 0:00:16]} 6. bxc3 {[%emt 0:00:02]} Qa5 {[%emt 0:00:09]} 7. Bd2 {[%emt 0:01:28]} Qa4 {[%emt 0:00:10]} 8. Qg4 {[%emt 0:01:08]} Kf8 {[%emt 0:00:16]} 9. h4 {[%emt 0:00:51]} h5 {[%emt 0:01:52]} 10. Qf4 {[%emt 0:05:43]} Qxc2 {[%emt 0:05:59]} 11. Rh3 {[%emt 0:01:49]} Qe4+ {[%emt 0:01:12]} 12. Qxe4 {[%emt 0:00:44]} dxe4 {[%emt 0:00:02]} 13. Re3 {[%emt 0:04:51]} Ne7 {[%emt 0:09:17]} 14. Rb1 {[%emt 0:07:31]} cxd4 {[%emt 0:06:45]} 15. cxd4 {[%emt 0:00:22]} Nd5 {[%emt 0:01:02]} 16. Rxe4 {[%emt 0:00:47]} b6 {[%emt 0:05:36]} 17. Bc4 {[%emt 0:04:45]} Bb7 {[%emt 0:01:52]} 18. Re2 {[%emt 0:03:19]} Na6 {[%emt 0:06:14]} 19. Nf3 {[%emt 0:04:11]} Rc8 {[%emt 0:10:19]} 20. Rc1 {[%emt 0:00:59]} Ke7 {[%emt 0:03:30]} 21. Ng5 {[%emt 0:02:13]} b5 {[%emt 0:13:49]} 22. Bxb5 {[%emt 0:04:14]} Rxc1+ {[%emt 0:00:10]} 23. Bxc1 {[%emt 0:00:03]} Rc8 {[%emt 0:00:46]} 24. Bd2 {[%emt 0:03:05]} Nac7 {[%emt 0:06:33]} 25. Bd3 {[%emt 0:12:05]} Ba6 {[%emt 0:00:31]} 26. Bxa6 {[%emt 0:00:26]} Nxa6 {[%emt 0:00:03]} 27. Ne4 {[%emt 0:03:11]} Rb8 {[%emt 0:03:32]} 28. Kd1 {[%emt 0:02:09]} Rb3 {[%emt 0:04:07]} 29. Bc1 {[%emt 0:00:26]} Kd7 {[%emt 0:09:54]} 30. Kc2 {[%emt 0:02:38]} Rb8 {[%emt 0:01:00]} 31. g3 {[%emt 0:01:21]} Rc8+ {[%emt 0:01:40]} 32. Kb1 {[%emt 0:02:17]} Nc3+ {[%emt 0:01:25]} 33. Nxc3 {[%emt 0:00:09]} Rxc3 {[%emt 0:00:02]} 34. Bb2 {[%emt 0:00:54]} Rf3 {[%emt 0:01:32]} 35. Rc2 {[%emt 0:12:11]} Nc7 {[%emt 0:01:55]} 36. Kc1 {[%emt 0:00:26]} Rd3 {[%emt 0:01:33]} 37. Rd2 {[%emt 0:01:53]} Rxd2 {[%emt 0:01:21]} 38. Kxd2 {[%emt 0:00:01]} Kc6 {[%emt 0:00:12]} 39. Kd3 {[%emt 0:02:18]} Kb5 {[%emt 0:01:14]} 40. f3 {[%emt 0:02:24]} Nd5 {[%emt 0:01:48]} 41. Bc1 {[%emt 0:51:07]} g6 {[%emt 0:50:56]} 42. g4 {[%emt 0:04:39]} a6 {[%emt 0:00:39]} 43. Bh6 {[%emt 0:03:25]} Ka4 {[%emt 0:00:00]} 44. Bf8 {[%emt 0:00:00]} Kb3 {[%emt 0:00:00]} 45. gxh5 {[%emt 0:00:00]} gxh5 {[%emt 0:00:00]} 46. Ke4 {[%emt 0:00:00]} Kc4 {[%emt 0:00:00]} 47. Bc5 {[%emt 0:00:00]} Kc3 {[%emt 0:00:00]} 48. f4 {[%emt 0:00:00]} Kd2 {[%emt 0:00:00]} 49. Bb4+ {[%emt 0:00:00]} Kc2 {[%emt 0:00:00]} 50. f5 {[%emt 0:00:00]} Kb3 {[%emt 0:00:00]} 51. Bd6 {[%emt 0:00:00]} Kc4 {[%emt 0:00:00]} 52. fxe6 {[%emt 0:00:00]} fxe6 {[%emt 0:00:00]} 53. Bc5 {[%emt 0:00:00]} a5 {[%emt 0:00:00]} 54. Bd6 {[%emt 0:00:00]} a4 {[%emt 0:00:00]} 55. Bc5 {[%emt 0:00:00]} Kc3 {[%emt 0:00:00]} 56. Bf8 {[%emt 0:00:00]} Kc4 {[%emt 0:00:00]} 1/2-1/2